fUST/lending_fUST_20240727
["ID","MTS","AMOUNT","RATE_DAILY","PERIOD"]
[333355123,1722070242611,-500.0,0.00013698,2]
[333355125,1722070242624,-500.0,0.00013698,2]
[333355127,1722070242633,-1224.82,0.00013698,2]
[333355129,1722070242643,-512.77449406,0.00013698,2]
[333355131,1722070242652,-542.25079484,0.00013698,2]
[333355133,1722070242661,-680.27,0.00013698,2]
[333355134,1722070242676,-500.0,0.00013698,2]
[333355136,1722070242687,-500.0,0.00013698,2]
[333355138,1722070242696,-500.0,0.00013698,2]
[333355140,1722070242706,-500.0,0.00013698,2]
[333355142,1722070242717,-500.0,0.00013698,2]
[333355144,1722070242726,-500.0,0.00013698,2]
[333355146,1722070242735,-500.0,0.00013698,2]
[333355148,1722070242746,-543.79927098,0.00013698,2]
[333355150,1722070242756,-500.0,0.00013698,2]
[333355152,1722070242765,-500.0,0.00013698,2]
[333355154,1722070242774,-500.0,0.00013698,2]
[333355156,1722070242784,-500.0,0.00013698,2]
[333355158,1722070242793,-500.0,0.00013698,2]
[333355160,1722070242802,-500.0,0.00013698,2]
[333355162,1722070242812,-500.0,0.00013698,2]
[333355164,1722070242821,-500.0,0.00013698,2]
[333355166,1722070242831,-500.0,0.00013698,2]
[333355168,1722070242841,-500.0,0.00013698,2]
[333355170,1722070242851,-500.0,0.00013698,2]
[333355172,1722070242860,-500.0,0.00013698,2]
[333355174,1722070242872,-500.0,0.00013698,2]
[333355176,1722070242882,-500.0,0.00013698,2]
[333355178,1722070242891,-630.73070108,0.00013698,2]
[333355180,1722070242901,-500.0,0.00013698,2]
[333355182,1722070242910,-675.8,0.00013698,2]
[333355184,1722070242920,-539.28780059,0.00013698,2]
[333355186,1722070242929,-500.0,0.00013698,2]
[333355188,1722070242939,-500.0,0.00013698,2]
[333355190,1722070242949,-405.73138549,0.00013698,2]
[333355192,1722070242959,-500.0,0.00013698,2]
[333355195,1722070242969,-588.71,0.00013698,2]
[333355197,1722070242979,-500.0,0.00013698,2]
[333355199,1722070242988,-431.34980111,0.00013698,2]
[333355200,1722070242998,-366.64214874,0.00013698,2]
[333355203,1722070243009,-500.0,0.00013698,2]
[333355205,1722070243018,-500.0,0.00013698,2]
[333355207,1722070243027,-583.74953854,0.00013698,2]
[333355209,1722070243037,-500.0,0.00013698,2]
[333355211,1722070243046,-500.0,0.00013698,2]
[333355213,1722070243056,-500.0,0.00013698,2]
[333355215,1722070243065,-184.74762428,0.00013698,2]
[333355216,1722070243075,-500.0,0.00013698,2]
[333355219,1722070243085,-500.0,0.00013698,2]
[333355221,1722070243095,-501.92399516,0.00013698,2]
[333355223,1722070243106,-198.46089815,0.00013698,2]
[333355224,1722070243116,-500.0,0.00013698,2]
[333355226,1722070243125,-500.0,0.00013698,2]
[333355228,1722070243135,-500.0,0.00013698,2]
[333355230,1722070243144,-506.52407148,0.00013698,2]
[333355233,1722070243155,-502.26380304,0.00013698,2]
[333355235,1722070243167,-548.94976271,0.00013698,2]
[333355237,1722070243176,-500.0,0.00013698,2]
[333355239,1722070243186,-2488.5,0.00013698,2]
[333355241,1722070243197,-500.0,0.00013698,2]
[333355243,1722070243206,-500.0,0.00013698,2]
[333355245,1722070243216,-500.0,0.00013698,2]
[333355247,1722070243225,-500.0,0.00013698,2]
[333355249,1722070243234,-535.66,0.00013698,2]
[333355251,1722070243243,-500.0,0.00013698,2]
[333355253,1722070243253,-500.0,0.00013698,2]
[333355255,1722070243262,-500.0,0.00013698,2]
[333355256,1722070243271,-1892.18,0.00013698,2]
[333355257,1722070243280,-500.0,0.00013698,2]
[333355258,1722070243290,-500.0,0.00013698,2]
[333355259,1722070243299,-500.0,0.00013698,2]
[333355260,1722070243308,-502.69507391,0.00013698,2]
[333355261,1722070243317,-500.0,0.00013698,2]
[333355262,1722070243326,-1452.55,0.00013698,2]
[333355263,1722070243336,-500.0,0.00013698,2]
[333355264,1722070243346,-500.0,0.00013698,2]
[333355265,1722070243358,-500.0,0.00013698,2]
[333355266,1722070243370,-1048.1,0.00013698,2]
[333355267,1722070243379,-570.15,0.00013698,2]
[333355268,1722070243388,-500.0,0.00013698,2]
[333355269,1722070243398,-500.0,0.00013698,2]
[333355270,1722070243407,-2218.23,0.00013698,2]
[333355271,1722070243416,-4947.16,0.00013698,2]
[333355273,1722070243425,-500.0,0.00013698,2]
[333355274,1722070243434,-500.0,0.00013698,2]
[333355276,1722070243443,-1070.04,0.00013698,2]
[333355278,1722070243453,-500.0,0.00013698,2]
[333355280,1722070243462,-469.49319836,0.00013698,2]
[333355282,1722070243471,-500.0,0.00013698,2]
[333355284,1722070243481,-500.0,0.00013698,2]
[333355286,1722070243490,-500.0,0.00013698,2]
[333355288,1722070243498,-1846.41,0.00013698,2]
[333355290,1722070243507,-500.0,0.00013698,2]
[333355292,1722070243517,-1236.96,0.00013698,2]
[333355294,1722070243526,-500.0,0.00013698,2]
[333355296,1722070243535,-513.53,0.00013698,2]
[333355298,1722070243544,-614.91,0.00013698,2]
[333355300,1722070243553,-500.0,0.00013698,2]
[333355302,1722070243562,-504.29395403,0.00013698,2]
[333355304,1722070243571,-500.0,0.00013698,2]
[333355306,1722070243580,-1178.93,0.00013698,2]
[333355308,1722070243589,-500.0,0.00013698,2]
[333355310,1722070243598,-500.0,0.00013698,2]
[333355312,1722070243607,-500.0,0.00013698,2]
[333355314,1722070243617,-500.0,0.00013698,2]
[333355316,1722070243627,-500.0,0.00013698,2]
[333355318,1722070243635,-500.0,0.00013698,2]
[333355320,1722070243645,-500.0,0.00013698,2]
[333355322,1722070243654,-504.3886552,0.00013698,2]
[333355324,1722070243663,-2442.33,0.00013698,2]
[333355326,1722070243675,-500.0,0.00013698,2]
[333355328,1722070243684,-500.0,0.00013698,2]
[333355330,1722070243693,-500.0,0.00013698,2]
[333355332,1722070243702,-500.0,0.00013698,2]
[333355334,1722070243713,-8415.5,0.00013698,2]
[333355336,1722070243723,-500.0,0.00013698,2]
[333355338,1722070243732,-500.0,0.00013698,2]
[333355340,1722070243741,-500.0,0.00013698,2]
[333355342,1722070243752,-500.0,0.00013698,2]
[333355344,1722070243763,-500.0,0.00013698,2]
[333355347,1722070243774,-500.0,0.00013698,2]
[333355349,1722070243783,-711.33,0.00013698,2]
[333355351,1722070243793,-382.14220212,0.00013698,2]
[333355353,1722070243803,-3538.98,0.00013698,2]
[333355355,1722070243812,-500.0,0.00013698,2]
[333355357,1722070243821,-875.19,0.00013698,2]
[333355359,1722070243831,-500.0,0.00013698,2]
[333355361,1722070243841,-500.0,0.00013698,2]
[333355363,1722070243850,-500.0,0.00013698,2]
[333355365,1722070243861,-500.0,0.00013698,2]
[333355367,1722070243871,-500.0,0.00013698,2]
[333355369,1722070243881,-1592.69,0.00013698,2]
[333355371,1722070243890,-504.44928973,0.00013698,2]
[333355373,1722070243899,-797.41,0.00013698,2]
[333355375,1722070243908,-500.0,0.00013698,2]
[333355377,1722070243918,-220.70281175,0.00013698,2]
[333355379,1722070243927,-500.0,0.00013698,2]
[333355381,1722070243937,-500.0,0.00013698,2]
[333355383,1722070243946,-504.0084634,0.00013698,2]
[333355385,1722070243956,-502.43092249,0.00013698,2]
[333355387,1722070243965,-500.0,0.00013698,2]
[333355389,1722070243975,-521.08,0.00013698,2]
[333355391,1722070243985,-500.0,0.00013698,2]
[333355393,1722070243995,-500.0,0.00013698,2]
[333355395,1722070244004,-500.0,0.00013698,2]
[333355397,1722070244013,-500.0,0.00013698,2]
[333355399,1722070244023,-500.0,0.00013698,2]
[333355401,1722070244032,-500.0,0.00013698,2]
[333355403,1722070244042,-349.09049593,0.00013698,2]
[333355405,1722070244052,-565.89448725,0.00013698,2]
[333355407,1722070244061,-500.0,0.00013698,2]
[333355409,1722070244071,-500.0,0.00013698,2]
[333355411,1722070244081,-500.0,0.00013698,2]
[333355413,1722070244090,-1677.61,0.00013698,2]
[333355415,1722070244100,-1432.7,0.00013698,2]
[333355417,1722070244109,-500.0,0.00013698,2]
[333355419,1722070244119,-500.0,0.00013698,2]
[333355421,1722070244129,-500.0,0.00013698,2]
[333355423,1722070244139,-500.0,0.00013698,2]
[333355425,1722070244148,-500.0,0.00013698,2]
[333355428,1722070244158,-987.44,0.00013698,2]
[333355429,1722070244168,-500.0,0.00013698,2]
[333355431,1722070244178,-549.17,0.00013698,2]
[333355434,1722070244187,-868.94,0.00013698,2]
[333355436,1722070244198,-500.73041792,0.00013698,2]
[333355438,1722070244208,-453.10003359,0.00013698,2]
[333355440,1722070244218,-500.0,0.00013698,2]
[333355442,1722070244228,-500.0,0.00013698,2]
[333355444,1722070244237,-1092.21,0.00013698,2]
[333355446,1722070244247,-500.0,0.00013698,2]
[333355448,1722070244256,-500.0,0.00013698,2]
[333355450,1722070244266,-500.0,0.00013698,2]
[333355452,1722070244276,-500.0,0.00013698,2]
[333355454,1722070244286,-500.0,0.00013698,2]
[333355456,1722070244296,-688.65,0.00013698,2]
[333355458,1722070244306,-500.0,0.00013698,2]
[333355460,1722070244316,-500.0,0.00013698,2]
[333355462,1722070244326,-500.0,0.00013698,2]
[333355464,1722070244337,-500.0,0.00013698,2]
[333355466,1722070244347,-5915.26,0.00013698,2]
[333355468,1722070244356,-500.0,0.00013698,2]
[333355470,1722070244366,-500.0,0.00013698,2]
[333355472,1722070244376,-500.0,0.00013698,2]
[333355475,1722070244385,-500.0,0.00013698,2]
[333355476,1722070244395,-500.0,0.00013698,2]
[333355478,1722070244404,-500.0,0.00013698,2]
[333355481,1722070244415,-621.95828282,0.00013698,2]
[333355483,1722070244425,-500.0,0.00013698,2]
[333355485,1722070244435,-500.0,0.00013698,2]
[333355487,1722070244444,-228.98263415,0.00013698,2]
[333355489,1722070244454,-500.0,0.00013698,2]
[333355491,1722070244464,-500.0,0.00013698,2]
[333355493,1722070244475,-500.0,0.00013698,2]
[333355495,1722070244484,-500.0,0.00013698,2]
[333355497,1722070244495,-500.0,0.00013698,2]
[333355499,1722070244505,-725.81,0.00013698,2]
[333355501,1722070244515,-1381.22,0.00013698,2]
[333355503,1722070244525,-500.0,0.00013698,2]
[333355505,1722070244535,-3338.17,0.00013698,2]
[333355507,1722070244546,-1929.96,0.00013698,2]
[333355509,1722070244556,-500.0,0.00013698,2]
[333355511,1722070244566,-993.2,0.00013698,2]
[333355513,1722070244575,-501.59095229,0.00013698,2]
[333355515,1722070244586,-756.39,0.00013698,2]
[333355517,1722070244595,-1117.42,0.00013698,2]
[333355520,1722070244605,-500.0,0.00013698,2]
[333355522,1722070244615,-596.99793014,0.00013698,2]
[333355524,1722070244625,-500.0,0.00013698,2]
[333355526,1722070244635,-2375.04,0.00013698,2]
[333355528,1722070244644,-500.0,0.00013698,2]
[333355530,1722070244655,-500.0,0.00013698,2]
[333355532,1722070244666,-500.0,0.00013698,2]
[333355534,1722070244680,-500.0,0.00013698,2]
[333355536,1722070244691,-1196.6,0.00013698,2]
[333355538,1722070244700,-501.469138,0.00013698,2]
[333355541,1722070244710,-500.0,0.00013698,2]
[333355543,1722070244721,-500.0,0.00013698,2]
[333355545,1722070244731,-502.29692296,0.00013698,2]
[333355547,1722070244741,-980.37,0.00013698,2]
[333355549,1722070244753,-569.12686434,0.00013698,2]
[333355551,1722070244765,-500.0,0.00013698,2]
[333355553,1722070244775,-500.0,0.00013698,2]
[333355555,1722070244785,-500.0,0.00013698,2]
[333355557,1722070244794,-811.36,0.00013698,2]
[333355559,1722070244805,-515.78965127,0.00013698,2]
[333355561,1722070244814,-500.0,0.00013698,2]
[333355563,1722070244824,-1538.63,0.00013698,2]
[333355565,1722070244834,-500.0,0.00013698,2]
[333355567,1722070244844,-500.0,0.00013698,2]
[333355569,1722070244854,-500.0,0.00013698,2]
[333355572,1722070244865,-500.0,0.00013698,2]
[333355574,1722070244876,-1252.67,0.00013698,2]
[333355576,1722070244886,-500.0,0.00013698,2]
[333355578,1722070244896,-500.0,0.00013698,2]
[333355580,1722070244906,-500.0,0.00013698,2]
[333355582,1722070244916,-727.73,0.00013698,2]
[333355584,1722070244926,-500.0,0.00013698,2]
[333355586,1722070244936,-500.0,0.00013698,2]
[333355588,1722070244946,-826.55,0.00013698,2]
[333355590,1722070244955,-670.68,0.00013698,2]
[333355592,1722070244966,-500.0,0.00013698,2]
[333355594,1722070244976,-500.0,0.00013698,2]
[333355596,1722070244986,-2024.92,0.00013698,2]
[333355599,1722070244996,-500.0,0.00013698,2]
[333355601,1722070245006,-555.68,0.00013698,2]
[333355603,1722070245017,-709.7,0.00013698,2]
[333355605,1722070245027,-709.7,0.00013698,2]
[333355607,1722070245038,-709.7,0.00013698,2]
[333355609,1722070245049,-709.7,0.00013698,2]
[333355611,1722070245058,-709.7,0.00013698,2]
[333355613,1722070245068,-500.0,0.00013698,2]
[333355615,1722070245078,-195.90726971,0.00013698,2]
[333355617,1722070245088,-538.18180067,0.00013698,2]
[333355619,1722070245098,-500.0,0.00013698,2]
[333355621,1722070245108,-252.5749336,0.00013698,2]
[333355623,1722070245118,-217.51175923,0.00013698,2]
[333355625,1722070245128,-538.18180067,0.00013698,2]
[333355627,1722070245137,-538.18180067,0.00013698,2]
[333355629,1722070245148,-500.0,0.00013698,2]
[333355631,1722070245158,-538.18180067,0.00013698,2]
[333355633,1722070245168,-709.7,0.00013698,2]
[333355636,1722070245180,-500.0,0.00013698,2]
[333355650,1722070245292,-538.18180067,0.00013698,2]
[333355652,1722070245315,-288.96723443,0.00013698,2]
[333355654,1722070245325,-538.18180067,0.00013698,2]
[333355656,1722070245335,-538.18180067,0.00013698,2]
[333355658,1722070245346,-500.0,0.00013698,2]
[333355661,1722070245357,-538.18180067,0.00013698,2]
[333355663,1722070245367,-500.0,0.00013698,2]
[333355665,1722070245377,-538.18180067,0.00013698,2]
[333355667,1722070245388,-500.0,0.00013698,2]
[333355669,1722070245398,-538.18180067,0.00013698,2]
[333355671,1722070245408,-709.7,0.00013698,2]
[333355673,1722070245418,-538.18180067,0.00013698,2]
[333355676,1722070245440,-553.6459299,0.00013698,2]
[333355678,1722070245452,-500.0,0.00013698,2]
[333355680,1722070245463,-538.18180067,0.00013698,2]
[333355682,1722070245475,-500.0,0.00013698,2]
[333355685,1722070245485,-500.0,0.00013698,2]
[333355687,1722070245497,-500.0,0.00013698,2]
[333355689,1722070245509,-538.18180067,0.00013698,2]
[333355691,1722070245521,-392.24800555,0.00013698,2]
[333355694,1722070245534,-538.18180067,0.00013698,2]
[333355696,1722070245545,-432.77229351,0.00013698,2]
[333355698,1722070245555,-538.18180067,0.00013698,2]
[333355700,1722070245567,-500.0,0.00013698,2]
[333355702,1722070245577,-500.0,0.00013698,2]
[333355705,1722070245588,-538.18180067,0.00013698,2]
[333355707,1722070245598,-453.17005008,0.00013698,2]
[333355730,1722070245793,-46.82994992,0.00013698,2]
[333355732,1722070245803,-500.0,0.00013698,2]
[333355734,1722070245813,-500.0,0.00013698,2]
[333355736,1722070245823,-500.0,0.00013698,2]
[333355738,1722070245833,-565.07174941,0.00013698,2]
[333355740,1722070245843,-840.91128056,0.00013698,2]
[333355742,1722070245857,-1325.25871944,0.00013698,2]
[333355744,1722070245868,-500.0,0.00013698,2]
[333355746,1722070245878,-144.78241723,0.00013698,2]
[333355861,1722070247121,-283.17952595,0.00013698,2]
[333356577,1722070254945,-886.2,0.00010959,2]
[333360027,1722070292521,200.0,0.0001,2]
[333362489,1722070335647,228.2345616,9.9e-05,2]
[333362491,1722070363183,200.0,0.0001,2]
[333362492,1722070383641,208.7961263,9.999e-05,2]
[333362493,1722070390370,180.22904215,9.999e-05,2]
[333362494,1722070392974,319.40039305,9.999e-05,2]
[333362495,1722070396207,403.25052629,9.999e-05,2]
[333362496,1722070401865,460.07074342,9.999e-05,2]
[333362497,1722070404433,533.38063441,9.999e-05,2]
[333362498,1722070409308,531.35557493,9.999e-05,2]
[333362499,1722070413560,209.5814502,9.999e-05,2]
[333362500,1722070415554,519.06293676,9.999e-05,2]
[333362501,1722070416015,333.93120663,9.999e-05,2]
[333362502,1722070416618,197.44091839,9.999e-05,2]
[333362503,1722070418733,567.99228217,9.999e-05,2]
[333362504,1722070418767,600.24609405,9.999e-05,2]
[333362505,1722070420078,156.51893246,9.999e-05,2]
[333362506,1722070423278,341.5748659,9.999e-05,2]
[333362507,1722070423347,200.0,0.0001,2]
[333362508,1722070424584,155.02715902,9.999e-05,2]
[333362509,1722070427265,778.87203636,9.999e-05,2]
[333362510,1722070430672,731.30595831,9.999e-05,2]
[333362511,1722070435833,159.94850941,9.999e-05,2]
[333362512,1722070446447,726.64238482,9.999e-05,2]
[333362513,1722070473839,848.37789621,9.999e-05,2]
[333362514,1722070496901,162.84649757,9.999e-05,2]
[333362515,1722070497914,200.0,0.0001,2]
[333362517,1722070517541,885.00918009,9.999e-05,2]
[333362518,1722070536674,156.01079347,9.999e-05,2]
[333362519,1722070568040,200.0,0.0001,2]
[333362520,1722070568663,234.17486227,9.999e-05,2]
[333362521,1722070631054,225.4172039,9.999e-05,2]
[333362522,1722070632722,200.0,0.0001,2]
[333362523,1722070638647,154.79103211,9.999e-05,2]
[333362524,1722070647705,154.79103211,9.999e-05,2]
[333362525,1722070685710,154.79103211,9.999e-05,2]
[333362526,1722070702544,200.0,0.0001,2]
[333362527,1722070767965,200.0,0.0001,2]
[333362529,1722070824576,-250.0,0.0001127,2]
[333362530,1722070825246,-250.0,0.0001127,2]
[333362531,1722070825782,-250.0,0.0001127,2]
[333362532,1722070826359,-250.0,0.0001127,2]
[333362533,1722070826969,-250.0,0.0001127,2]
[333362534,1722070827525,-250.0,0.0001127,2]
[333362535,1722070832482,251.06554514,0.0001,2]
[333362536,1722070833802,-6908.08344272,0.0001127,2]
[333362537,1722070835541,-250.0,0.00011594,2]
[333362538,1722070836170,-250.0,0.00011626,2]
[333362539,1722070836792,-250.0,0.00011657,2]
[333362540,1722070839255,-250.0,0.00011689,2]
[333362541,1722070841953,-250.0,0.00011721,2]
[333362542,1722070842673,-250.0,0.00011753,2]
[333362543,1722070843248,-250.0,0.00011785,2]
[333362546,1722070894770,-620.77793659,0.00011716,2]
[333362547,1722071066475,165.42397432,9.999e-05,2]
[333362548,1722071068745,-1872.8964311,0.00011108,2]
[333362549,1722071068767,-23027.1035689,0.00011141,2]
[333362550,1722071069937,-1872.8964311,0.00011141,2]
[333362551,1722071147147,-195.06,0.00011816,2]
[333362552,1722071205477,165.42397432,9.999e-05,2]
[333362553,1722071252095,-54.94,0.00011816,2]
[333362554,1722071252116,-250.0,0.00011848,2]
[333362555,1722071252138,-137.78729716,0.0001188,2]
[333362556,1722071304488,165.42397432,9.999e-05,2]
[333362561,1722071348166,-163.702584,0.00011858,2]
[333362562,1722071348190,-163.702584,0.00011891,2]
[333362563,1722071348214,-163.702584,0.00011923,2]
[333362564,1722071348238,-163.702584,0.00011956,2]
[333362565,1722071348262,-163.702584,0.00011988,2]
[333362566,1722071348284,-163.702584,0.00012021,2]
[333362567,1722071348308,-163.702584,0.00012053,2]
[333362568,1722071348330,-163.702584,0.00012086,2]
[333362569,1722071348353,-163.702584,0.00012118,2]
[333362570,1722071348376,-163.702584,0.00012151,2]
[333362571,1722071348398,-163.702584,0.00012183,2]
[333362572,1722071348420,-163.702584,0.00012216,2]
[333362573,1722071348443,-163.702584,0.00012248,2]
[333362574,1722071348466,-163.702584,0.00012281,2]
[333362575,1722071348488,-163.702584,0.00012313,2]
[333362576,1722071348511,-163.702584,0.00012346,2]
[333362577,1722071348535,-66.96458408,0.00012378,2]
[333362578,1722071366184,405.21593818,9.999e-05,2]
[333362580,1722071393484,165.42397432,9.999e-05,2]
[333362581,1722071411244,58.61055524,0.0001212,2]
[333362582,1722071411267,150.01676455,0.0001212,2]
[333362583,1722071414690,113.15400362,0.0001212,2]
[333362675,1722071438438,-127.36185509,0.0001212,2]
[333362677,1722071438447,-600.13398143,0.0001212,2]
[333362679,1722071438457,-285.93068112,0.0001212,2]
[333362680,1722071438466,-568.18099482,0.0001212,2]
[333362681,1722071438476,-531.61181222,0.0001212,2]
[333362682,1722071438489,-727.02832733,0.0001212,2]
[333362683,1722071438498,-175.53192013,0.0001212,2]
[333362684,1722071438508,-306.95511871,0.0001212,2]
[333362685,1722071438517,-663.78880537,0.0001212,2]
[333362686,1722071438528,-154.68290005,0.0001212,2]
[333362687,1722071438537,-156.05197447,0.0001212,2]
[333362688,1722071438546,-806.45186026,0.0001212,2]
[333362689,1722071438556,-413.63079778,0.0001212,2]
[333362690,1722071438566,-304.2817983,0.0001212,2]
[333362691,1722071438576,-375.56569674,0.0001212,2]
[333362693,1722071438586,-779.13201586,0.0001212,2]
[333362694,1722071438595,-220.99252055,0.0001212,2]
[333362695,1722071438604,-154.83739293,0.0001212,2]
[333362696,1722071438614,-157.1427601,0.0001212,2]
[333362697,1722071438624,-196.65770261,0.0001212,2]
[333362698,1722071438633,-233.4520836,0.0001212,2]
[333362700,1722071438643,-533.56056987,0.0001212,2]
[333362703,1722071438663,-193.77561138,0.0001212,2]
[333362705,1722071438673,-256.44909071,0.0001212,2]
[333362706,1722071438682,-288.3347294,0.0001212,2]
[333362707,1722071438692,-341.48992898,0.0001212,2]
[333362708,1722071438701,-154.81751879,0.0001212,2]
[333362709,1722071438713,-519.14870802,0.0001212,2]
[333362710,1722071438724,-156.17659771,0.0001212,2]
[333362711,1722071438734,-154.85752887,0.0001212,2]
[333362712,1722071438744,-521.74223491,0.0001212,2]
[333362713,1722071438754,-154.68290005,0.0001212,2]
[333362714,1722071438764,-157.34846085,0.0001212,2]
[333362715,1722071438774,-155.13729533,0.0001212,2]
[333362716,1722071438783,-172.77789669,0.0001212,2]
[333362717,1722071438793,-4707.90566682,0.0001212,2]
[333362718,1722071438803,-188.10567749,0.0001212,2]
[333362719,1722071438813,-154.68290005,0.0001212,2]
[333362720,1722071438822,-159.9761619,0.0001212,2]
[333362721,1722071438831,-157.67039442,0.0001212,2]
[333362722,1722071438841,-154.79103211,0.0001212,2]
[333362723,1722071438851,-154.86073047,0.0001212,2]
[333362724,1722071438860,-220.22655659,0.0001212,2]
[333362725,1722071438870,-96.73799992,0.00012378,2]
[333362726,1722071438881,-163.702584,0.00012411,2]
[333362727,1722071438890,-163.702584,0.00012443,2]
[333362728,1722071438900,-163.702584,0.00012476,2]
[333362729,1722071438910,-7527.52072221,0.00013,2]
[333362730,1722071438919,-185.881104,0.00013425,2]
[333362731,1722071438929,-1000.0,0.00013441,2]
[333362732,1722071438940,-11344.8809736,0.000135,2]
[333362733,1722071438949,-11344.8809736,0.00013525,2]
[333362734,1722071438959,-300.0,0.00013547,2]
[333362735,1722071438969,-300.0,0.00013547,2]
[333362736,1722071438979,-171.51465,0.00013548,2]
[333362737,1722071438989,-181.477012,0.00013548,2]
[333362738,1722071438998,-181.477012,0.00013548,2]
[333362739,1722071439008,-11344.8809736,0.00013549,2]
[333362740,1722071439018,-11344.8809736,0.00013574,2]
[333362741,1722071439028,-45947.4809872,0.00013588,2]
[333362742,1722071439037,-2000.0,0.00013588,2]
[333362743,1722071439048,-363.68407777,0.00013593,2]
[333362744,1722071439059,-150.0,0.00013595,2]
[333362745,1722071439069,-1251.27201757,0.00013598,2]
[333362746,1722071439078,-11344.8809736,0.00013598,2]
[333362747,1722071439087,-88888.0,0.00013598,2]
[333362748,1722071439097,-150.112233,0.000136,2]
[333362749,1722071439106,-363.59268565,0.00013665,2]
[333362750,1722071439116,-505.0,0.00013684,2]
[333362751,1722071439126,-4462.07436389,0.00013686,2]
[333362752,1722071439135,-91894.9619744,0.00013688,2]
[333362753,1722071439145,-91894.9619744,0.00013688,2]
[333362754,1722071439155,-26637.24412537,0.00013698,5]
[333362755,1722071439168,-152603.89599968,0.00013698,5]
[333362756,1722071439178,-500.0,0.00013698,2]
[333362757,1722071439188,-500.0,0.00013698,2]
[333362758,1722071439198,-500.0,0.00013698,2]
[333362759,1722071439213,-500.0,0.00013698,2]
[333362760,1722071439223,-500.0,0.00013698,2]
[333362761,1722071439234,-500.0,0.00013698,2]
[333362762,1722071439248,-500.0,0.00013698,2]
[333362763,1722071439259,-500.0,0.00013698,2]
[333362764,1722071439269,-500.0,0.00013698,2]
[333362765,1722071439279,-500.0,0.00013698,2]
[333362766,1722071439288,-500.0,0.00013698,2]
[333362767,1722071439298,-500.0,0.00013698,2]
[333362768,1722071439307,-500.0,0.00013698,2]
[333362769,1722071439318,-500.0,0.00013698,2]
[333362770,1722071439329,-500.0,0.00013698,2]
[333362771,1722071439339,-500.0,0.00013698,2]
[333362772,1722071439349,-500.0,0.00013698,2]
[333362773,1722071439359,-500.0,0.00013698,2]
[333362774,1722071439368,-500.0,0.00013698,2]
[333362775,1722071439378,-500.0,0.00013698,2]
[333362776,1722071439388,-228.71328731,0.00013698,2]
[333362777,1722071439398,-577.36044152,0.00013698,2]
[333362778,1722071439407,-500.0,0.00013698,2]
[333362779,1722071439417,-500.0,0.00013698,2]
[333362780,1722071439427,-500.0,0.00013698,2]
[333362781,1722071439437,-500.0,0.00013698,2]
[333362782,1722071439446,-500.0,0.00013698,2]
[333362783,1722071439457,-500.0,0.00013698,2]
[333362784,1722071439468,-500.0,0.00013698,2]
[333362785,1722071439478,-500.0,0.00013698,2]
[333362786,1722071439488,-500.0,0.00013698,2]
[333362787,1722071439498,-500.0,0.00013698,2]
[333362788,1722071439511,-500.0,0.00013698,2]
[333362789,1722071439521,-500.0,0.00013698,2]
[333362790,1722071439531,-500.0,0.00013698,2]
[333362791,1722071439540,-500.0,0.00013698,2]
[333362792,1722071439550,-500.0,0.00013698,2]
[333362793,1722071439560,-500.0,0.00013698,2]
[333362794,1722071439569,-500.0,0.00013698,2]
[333362795,1722071439579,-500.0,0.00013698,2]